Cogmind - Beta 12 --- EXPLORER MODE // 2023.09.26 @ 12:15:58 Player: PionFour Result: Self-destructed Performance ------------- Evolutions (4) 2000 Regions Visited (9) 1800 Robots Destroyed (114) 570 Value Destroyed (4628) 4628 Prototype IDs (13) 260 Alien Tech Used (0) 0 Bonus (2630) 2630 TOTAL SCORE: 11888 Bonus ------- High Alert Combat Kills 541 Follower Combat Kills 366 Entered Garrisons 400 Used RIF Installer 1500 Friendly Fire -177 Cogmind --------- Core Integrity 788/850 Matter 123/300 Energy 432/480 System Corruption 1% Temperature Cool (0) Movement Treading (240) Ox1 Location -6/Factory Parts ------- > --- POWER (2) -------- Improved Deuterium Engine Improved Deuterium Engine > --- PROPULSION (3) --- Light Treads Light Treads Improved Medium Treads > --- UTILITY (9) ------ Huge Storage Unit Machine Analyzer Improved Targeting Computer Improved Light Armor Plating Improved Focal Shield Improved Thermal Shield Remote Shield Relay Coupler [Grunt] (20) > --- WEAPON (2) ------- Remote Datajack Ripper > --- INVENTORY (25) --- Light Treads Light Treads Armored Wheel Huge Storage Unit Improved Sensor Array Improved Launcher Guidance Computer Improved Focal Shield Improved Shock Absorption System Relay Coupler [NC] (47) Relay Coupler [Grunt] (39) Component Analysis Suite System Restoration Module Improved Recalibrator Sensor Drone Bay (20/20) Coil Gun Coil Gun Coil Gun Improved Heavy Machine Gun Battle Cannon Improved Grenade Launcher Improved Grenade Launcher Heavy Rocket Launcher Heavy Rocket Launcher Improved Datajack Plasma Cutter Peak State ------------ > --- POWER ------------ Improved Deuterium Engine Improved Deuterium Engine > --- PROPULSION ------- Light Treads Light Treads Improved Medium Treads > --- UTILITY ---------- Huge Storage Unit Machine Analyzer Improved Targeting Computer Improved Light Armor Plating Improved Focal Shield Improved Thermal Shield Remote Shield Relay Coupler [NC] Relay Coupler [Grunt] > --- WEAPON ----------- Coil Gun Improved Heavy Machine Gun > --- INVENTORY -------- Light Treads Light Treads Armored Wheel Huge Storage Unit Improved Sensor Array Improved Launcher Guidance Computer Improved Focal Shield Improved Shock Absorption System Relay Coupler [NC] Relay Coupler [Grunt] Component Analysis Suite System Restoration Module Improved Recalibrator Sensor Drone Bay Coil Gun Coil Gun Battle Cannon Improved Grenade Launcher Improved Grenade Launcher Heavy Rocket Launcher Heavy Rocket Launcher Improved Datajack Remote Datajack Plasma Cutter Ripper [Rating: 65] Favorites ----------- Power Improved Deuterium Engine Engine Improved Deuterium Engine Propulsion Light Treads Treads Light Treads Leg Aluminum Leg Wheel Wheel Utility Huge Storage Unit Device Improved Terrain Scanner Storage Huge Storage Unit Processor Advanced Visual Processing Unit Hackware Relay Coupler [Grunt] Protection Hardened Medium Armor Plating Weapon Beamcaster Energy Gun Beamcaster Energy Cannon Beam Cannon Ballistic Gun Coil Gun Ballistic Cannon Battle Cannon Launcher Grenade Launcher Special Weapon Remote Datajack Slashing Weapon Ripper Piercing Weapon Spear Special Melee Weapon Improved Datajack Build | -11 -10 -10 -9 -9 -8 -8 -7 -7 -6 ------- Run | Jun Mat Min Mat Min Mat Gar Fac Gar Fac Slots Evolved 9 | . 1 . 2 . 2 . 2 . 2 Power 1 | . . . . . . . . . 1 Propulsion 1 | . . . 1 . . . . . . Utility 7 | . 1 . 1 . 2 . 2 . 1 Weapon . | . . . . . . . . . . Parts Attached 215 | 2 8 8 21 21 2 40 55 45 13 Power 16 | . . 1 2 5 . . 3 4 1 Engine 16 | . . 1 2 5 . . 3 4 1 Core . | . . . . . . . . . . Reactor . | . . . . . . . . . . Propulsion 38 | 2 1 . 6 7 . 7 6 8 1 Treads 10 | 2 1 . . . . . . 6 1 Leg . | . . . . . . . . . . Wheel 28 | . . . 6 7 . 7 6 2 . Hover . | . . . . . . . . . . Flight . | . . . . . . . . . . Utility 68 | . 2 4 8 6 2 10 17 16 3 Device 32 | . 1 2 5 4 1 1 7 8 3 Storage 1 | . . . 1 . . . . . . Processor 10 | . . . . 1 1 4 4 . . Hackware 9 | . . . . . . 2 4 3 . Protection 16 | . 1 2 2 1 . 3 2 5 . Artifact . | . . . . . . . . . . Weapon 93 | . 5 3 5 3 . 23 29 17 8 Energy Gun 27 | . 2 . 4 2 . 8 10 1 . Energy Cannon 2 | . 1 . . . . . 1 . . Ballistic Gun 14 | . 1 . . . . . 3 7 3 Ballistic Cannon 4 | . . 1 . . . . 1 2 . Launcher 11 | . 1 1 1 . . 7 . . 1 Special Weapon 17 | . . 1 . . . 1 8 5 2 Impact Weapon . | . . . . . . . . . . Slashing Weapon 15 | . . . . 1 . 7 4 1 2 Piercing Weapon 2 | . . . . . . . 2 . . Special Melee Weapon 1 | . . . . . . . . 1 . Unidentified Prototypes 1 | . . 1 . . . . . . . Parts Lost 24 | . . . 6 3 . 1 3 10 1 Power 4 | . . . . 1 . . 1 2 . Propulsion 6 | . . . 2 1 . . . 3 . Utility 7 | . . . 2 1 . . 1 2 1 Weapon 7 | . . . 2 . . 1 1 3 . Highest Loss Streak 5 | . . . 4 2 . 1 2 5 1 To Critical Strikes 2 | . . . . . . . . 2 . Average Slot Usage (%) 97 | . 99 99 97 98 98 99 89 97 99 Engine 9 | . 12 12 10 10 8 8 7 7 11 Treads 9 | . 25 25 . . . . . 16 18 Wheel 13 | . . . 28 29 25 25 16 2 . Device 9 | . 12 12 19 10 15 5 3 6 18 Storage 8 | . 12 12 10 10 8 8 7 7 6 Processor 13 | . 6 . . 8 16 26 16 19 12 Hackware 6 | . . . . . . . 17 18 11 Protection 7 | . 5 11 9 10 8 8 7 3 6 Energy Gun 5 | . 8 . 12 17 16 7 2 . . Ballistic Gun 2 | . 7 . . . . . 2 5 8 Ballistic Cannon 1 | . . 11 2 . . . . . . Special Weapon 2 | . . 6 2 . . . 4 1 . Slashing Weapon 3 | . . . . 2 . 7 2 4 3 Naked Turns . | . . . . . . . . . . Heaviest Build 122 | 18 25 36 111 117 106 109 118 111 122 Greatest Support 70 | 40 40 40 30 30 30 36 40 60 70 Greatest Overweight (x) 10 | . . . 5 5 3 3 10 9 2 Average Overweight (x) 1 | . . . 3 3 3 2 2 1 1 Largest Inventory Capacity 25 | 10 10 10 25 25 25 25 25 25 25 Average Capacity 21 | 10 10 10 24 25 25 25 25 25 25 Most Carried 25 | 10 10 10 20 25 25 25 25 25 25 Average Carried 19 | 8 9 9 13 23 23 24 22 21 24 Final Capacity 25 | 10 10 10 25 25 25 25 25 25 25 Final Carried 25 | 9 10 10 20 25 25 24 22 25 25 Class Distribution -------------------- 33% | Bothacker-Mutant 32% | Scavenger-Mutant 29% | Hacker-Mutant 4% | Scavenger-Assassin Dominant Class ---------------- Hacker-Mutant | -10/Materials Hacker-Mutant | -10/Mines Scavenger-Mutant | -9/Materials Scavenger-Mutant | -9/Mines Scavenger-Mutant | -8/Materials Scavenger-Mutant | -8/Garrison Bothacker-Mutant | -7/Factory Bothacker-Mutant | -7/Garrison Scavenger-Mutant | -6/Factory Resources | -11 -10 -10 -9 -9 -8 -8 -7 -7 -6 ----------- Run | Jun Mat Min Mat Min Mat Gar Fac Gar Fac Matter Collected 3356 | 226 119 181 222 232 20 520 831 749 256 Remotely . | . . . . . . . . . . Salvage Created 4533 | 102 358 45 465 464 50 1274 643 945 187 Parts 259 | 6 22 6 30 21 2 76 35 56 5 Haulers Intercepted 5 | . 2 . 1 . 1 . 1 . . Recyclers Shooed 1 | . . . . 1 . . . . . Parts Field Recycled . | . . . . . . . . . . Retrieved Matter . | . . . . . . . . . . Parts Self-Destructed . | . . . . . . . . . . Prevented . | . . . . . . . . . . Kills | -11 -10 -10 -9 -9 -8 -8 -7 -7 -6 ------- Run | Jun Mat Min Mat Min Mat Gar Fac Gar Fac Combat Hostiles Destroyed 96 | . 6 3 7 13 . 36 10 19 2 Melee 32 | . . . . 6 . 12 7 7 . Guns 38 | . 5 . 5 6 . 8 3 10 1 Cannons 8 | . 1 3 2 . . . . 2 . AOE 17 | . . . . 1 . 15 . . 1 Classes Destroyed 15 | 2 5 1 3 1 . 2 1 . . Worker 3 | . . 1 . 1 . . 1 . . Builder 4 | . 2 1 1 . . . . . . Tunneler 4 | 1 . 1 . 2 . . . . . Hauler 5 | . 2 . 1 . 1 . 1 . . Recycler 4 | 1 . . 1 1 . . . . 1 Mechanic 3 | . . . 1 . . . 2 . . Watcher 3 | . 3 . . . . . . . . Swarmer 30 | . 4 2 . . . 13 3 8 . Grunt 21 | . 2 1 3 3 . 10 2 . . Duelist 4 | . . . 1 2 . 1 . . . Sentry 20 | . . . 3 . . 4 2 11 . Specialist 5 | . . . . . . 5 . . . Hunter 3 | . . . . . . . 1 . 2 Programmer 5 | . . . . . . 3 2 . . Assembled 8 | . . . . 8 . . . . . Best Kill Streak 10 | 2 2 2 4 7 1 10 4 7 1 Combat Bots Only 10 | . 2 2 2 6 . 10 4 7 1 Max Kills in Single Turn 3 | 1 1 1 1 1 1 3 1 1 1 Gunslinging . | . . . . . . . . . . Exploded 3 | . . . . 1 . 3 . . 1 Melee 1 | . . . . 1 . 1 1 1 . Uniques/NPCs Destroyed . | . . . . . . . . . . Combat | -11 -10 -10 -9 -9 -8 -8 -7 -7 -6 -------- Run | Jun Mat Min Mat Min Mat Gar Fac Gar Fac Damage Taken 5482 | . 110 101 665 440 9 985 894 1695 583 Core 705 | . . . 109 90 9 132 70 233 62 Absorbed by Shields 331 | . . . . . . 15 . 190 126 Core Remaining (%) 76 | 100 . 100 . 50 . 74 . 56 . Volleys Fired 324 | 2 26 20 26 41 4 46 67 68 24 Largest 2 | 2 2 2 2 2 1 2 2 2 2 Hottest 139 | 60 100 139 139 95 45 100 100 67 60 Shots Fired 441 | 4 50 25 41 43 4 53 76 106 39 Gun 308 | 4 32 . 33 43 4 33 37 87 35 Cannon 43 | . 17 13 2 . . . 1 10 . Launcher 18 | . 1 2 1 . . 13 . . 1 Special 72 | . . 10 5 . . 7 38 9 3 Kinetic 176 | 2 14 13 2 . . . 19 91 35 Thermal 91 | 2 35 10 5 15 . 13 11 . . Explosive 18 | . 1 2 1 . . 13 . . 1 Electromagnetic 107 | . . . 33 28 4 20 16 6 . Robot Hit Streak 54 | 4 19 21 42 44 9 16 33 54 44 Robot Miss Streak 5 | . 2 1 . 3 1 1 5 1 2 Penetration Max 2 | . . . . . . . . 2 1 Secondary Targets 2 | . . . . . . . . 2 . Max Gunslinging Chain 1 | . . . . . . . . 1 . Shots Hit Robots 481 | 4 39 18 36 46 4 95 82 121 36 Core Hits 200 | 3 18 8 16 24 4 55 21 41 10 Critical Kills 1 | . . . . . . . . 1 . Critical Parts Destroyed 1 | . . . . . . . . 1 . Critical Strikes 22 | . . 1 2 4 . 6 2 7 . Burn 4 | . . . . 4 . . . . . Destroy 4 | . . . . . . . . 4 . Blast 2 | . . 1 . . . . . 1 . Corrupt 3 | . . . 2 . . . . 1 . Sever 9 | . . . . . . 6 2 1 . Melee Attacks 173 | . . . . 11 . 93 27 37 5 Impact . | . . . . . . . . . . Slashing 167 | . . . . 11 . 93 22 36 5 Piercing 5 | . . . . . . . 5 . . Sneak Attacks 5 | . . . . . . 1 3 1 . Combat Hostiles 2 | . . . . . . 1 1 . . Follow-up Attacks . | . . . . . . . . . . Damage Inflicted 12204 | 49 511 497 761 1261 83 3821 1560 2650 1011 Guns 5051 | 49 337 . 533 674 83 447 531 1805 592 Cannons 720 | . 174 265 45 . . . 28 208 . Explosions 2202 | . . 117 70 184 . 1456 . . 375 Melee 3936 | . . . . 403 . 1918 934 637 44 Ramming 84 | . . 19 65 . . . . . . Kinetic 3251 | 26 150 265 45 . . . 250 1923 592 Thermal 1351 | 23 361 96 48 440 . 252 131 . . Explosive 1956 | . . 117 70 . . 1394 . . 375 Electromagnetic 1626 | . . . 533 418 83 257 245 90 . Impact . | . . . . . . . . . . Slashing 3936 | . . . . 403 . 1918 934 637 44 Piercing . | . . . . . . . . . . Highest Corruption 3 | . 1 1 1 3 . 1 2 1 1 Average Corruption 1 | . 1 1 1 1 . 1 1 1 1 Corruption Purged 3 | . . . . . . . 2 1 . Corruption Blocked . | . . . . . . . . . . Effects 40 | . 4 11 3 10 . 4 2 6 . Message Errors 10 | . 1 4 1 3 . . 1 . . Matter Fused 15 | . 1 4 . 4 . 2 . 4 . Heat Flow Errors 1 | . . . . . . . . 1 . Energy Discharges 3 | . 1 1 . 1 . . . . . Parts Rejected 1 | . . . . . . . 1 . . Data Loss (minor) 4 | . . . 2 1 . . . 1 . Data Loss (major) 3 | . . 1 . 1 . 1 . . . Misfires 2 | . . 1 . . . 1 . . . Alerts 1 | . 1 . . . . . . . . Overload Shots . | . . . . . . . . . . Overflow Damage 294 | . . 15 . 22 . 216 15 7 19 Projectiles 9 | . . 9 . . . . . . . Explosions 114 | . . 6 . . . 89 . . 19 Melee 171 | . . . . 22 . 127 15 7 . Knockbacks 5 | . . 4 . . . . . 1 . Impact . | . . . . . . . . . . Kinetic 5 | . . 4 . . . . . 1 . Secondary . | . . . . . . . . . . Self-Inflicted Damage 198 | . . . 32 31 . 44 . . 91 Shots 6 | . . . . 1 . 2 . . 3 Rammed 7 | . . 5 2 . . . . . . Targets Rammed 7 | . . 5 2 . . . . . . Kicked . | . . . . . . . . . . Crushed . | . . . . . . . . . . Highest Temperature 394 | . 231 200 394 279 26 207 108 332 81 Average Temperature 70 | . 71 59 118 78 14 62 36 55 28 Received Heat Transfer 2199 | . 33 84 351 57 27 387 300 774 186 Effects 11 | . 1 . . 6 . 1 . 3 . Energy Bleed 4 | . 1 . . 2 . 1 . . . Interference 6 | . . . . 4 . . . 2 . Short Circuit 1 | . . . . . . . . 1 . Siege Activations . | . . . . . . . . . . Robots Corrupted 2 | . . . . 1 . 1 . . . Combat Hostiles 1 | . . . . . . 1 . . . Parts Fried 7 | . . . 1 3 . 1 2 . . Impact Corruptions . | . . . . . . . . . . Robots Melted . | . . . . . . . . . . Combat Hostiles . | . . . . . . . . . . Parts Melted 3 | . 1 . . 2 . . . . . Heat Transferred 2851 | 50 795 200 100 990 . 383 333 . . Parts Sabotaged . | . . . . . . . . . . Parts Stolen . | . . . . . . . . . . Parts Stripped . | . . . . . . . . . . Power Chain Reactions 2 | . . . . 1 . 1 . . . Missiles Intercepted . | . . . . . . . . . . Alert | -11 -10 -10 -9 -9 -8 -8 -7 -7 -6 ------- Run | Jun Mat Min Mat Min Mat Gar Fac Gar Fac Peak Influence 1620 | 10 149 49 171 119 110 1620 770 558 316 Initial 631 | . 4 16 13 26 15 54 631 54 217 Average 315 | 7 38 12 70 29 66 894 407 304 248 Maximum Alert Level 5 | . . . . . . 5 3 2 1 Low Security (%) 52 | 100 100 100 100 100 100 11 20 15 . Level 1 20 | . . . . . . 14 22 62 100 Level 2 10 | . . . . . . 4 38 21 . Level 3 7 | . . . . . . 26 19 . . Level 4 8 | . . . . . . 39 . . . Level 5 . | . . . . . . 2 . . . High Security . | . . . . . . . . . . Max Security . | . . . . . . . . . . Squads Dispatched 13 | . . . 2 . . . 10 . 1 Investigation 6 | . . . 2 . . . 4 . . Extermination 3 | . . . . . . . 2 . 1 Reinforcement 3 | . . . . . . . 3 . . Assault . | . . . . . . . . . . Garrison 1 | . . . . . . . 1 . . Intercept . | . . . . . . . . . . Searches Triggered . | . . . . . . . . . . Construction Impeded 1 | . . . . . . . 1 . . Haulers Reinforced . | . . . . . . . . . . Active Scanning Responses . | . . . . . . . . . . Cargo Convoy Interrupts . | . . . . . . . . . . Stealth | -11 -10 -10 -9 -9 -8 -8 -7 -7 -6 --------- Run | Jun Mat Min Mat Min Mat Gar Fac Gar Fac Distress Signals 4 | . . . 3 . . . . 1 . Communications Jammed . | . . . . . . . . . . Distress Signals . | . . . . . . . . . . Times Spotted 160 | . 10 4 14 24 4 39 30 28 7 Peak Tracking Total 7 | . 2 2 4 6 1 6 6 7 5 Tactical Retreats 10 | . . . 1 5 . 1 . 3 . Traps | -11 -10 -10 -9 -9 -8 -8 -7 -7 -6 ------- Run | Jun Mat Min Mat Min Mat Gar Fac Gar Fac Traps Triggered 16 | . 3 . . . . 9 1 3 . Indirectly . | . . . . . . . . . . Trap Hack Attempts 16 | . . . . . . . . 16 . Triggered 1 | . . . . . . . . 1 . Disarmed . | . . . . . . . . . . Reprogrammed 2 | . . . . . . . . 2 . Reused 1 | . . . . . . . . 1 . Traps Extracted . | . . . . . . . . . . Installed . | . . . . . . . . . . Triggered 1 | . . . . . . . . 1 . Machines | -11 -10 -10 -9 -9 -8 -8 -7 -7 -6 ---------- Run | Jun Mat Min Mat Min Mat Gar Fac Gar Fac Machines Disabled 13 | . 1 1 . 2 . 5 2 . 2 Max in Single Turn 2 | . 1 1 . 1 . 1 1 . 2 Garrison Relay 6 | . . . . . . 5 . 1 . Machines Repaired . | . . . . . . . . . . Machines Sabotaged . | . . . . . . . . . . Overloaded Fab Kills . | . . . . . . . . . . Hacking | -11 -10 -10 -9 -9 -8 -8 -7 -7 -6 --------- Run | Jun Mat Min Mat Min Mat Gar Fac Gar Fac Machines Accessed 34 | . 9 2 6 1 3 3 9 1 . Terminals 24 | . 8 1 4 1 2 3 4 1 . Fabricators 1 | . . . . . . . 1 . . Repair Stations . | . . . . . . . . . . Recycling Units 3 | . 1 . 1 . . . 1 . . Scanalyzers 3 | . . . 1 . . . 2 . . Garrison Access 2 | . . . . . 1 . 1 . . Total Hacks 104 | . 30 5 25 1 9 8 24 2 . Successful 69 | . 23 5 18 1 5 1 14 2 . Failed 35 | . 7 . 7 . 4 7 10 . . Catastrophic 7 | . 1 . . . . 4 2 . . Database Lockouts . | . . . . . . . . . . Manual 56 | . 14 4 15 3 3 4 12 1 . Terminals 86 | . 28 4 19 1 8 8 16 2 . Fabricators 3 | . . . . . . . 3 . . Repair Stations . | . . . . . . . . . . Recycling Units 5 | . 2 . 2 . . . 1 . . Scanalyzers 7 | . . . 4 . . . 3 . . Garrison Access 2 | . . . . . 1 . 1 . . Terminal Hacks 45 | . 18 5 10 1 2 1 6 2 . Part Schematic 4 | . 1 3 . . . . . . . Robot Analysis 3 | . 2 . 1 . . . . . . Prototype ID Bank 12 | . 7 1 2 1 . . 1 . . Open Door 1 | . . 1 . . . . . . . Branch Access Points 3 | . 1 . 1 . . . 1 . . Emergency Access Points 2 | . . . . . . 1 . 1 . Terminal Index 3 | . 1 . 1 . . . 1 . . Garrison Index 1 | . . . 1 . . . . . . Alert Level 2 | . . . 1 . 1 . . . . Locate Traps 10 | . 4 . 3 . 1 . 2 . . Dispatch Records 1 | . 1 . . . . . . . . Patrol Status 1 | . 1 . . . . . . . . Recall Investigation 1 | . . . . . . . 1 . . Garrison Registry 1 | . . . . . . . . 1 . Fabricator Hacks 1 | . . . . . . . 1 . . Network Status 1 | . . . . . . . 1 . . Repair Station Hacks . | . . . . . . . . . . Recycling Unit Hacks 2 | . 1 . 1 . . . . . . Report Inventory 2 | . 1 . 1 . . . . . . Scanalyzer 5 | . . . 4 . . . 1 . . Insert Component 3 | . . . 2 . . . 1 . . Analyze 2 | . . . 2 . . . . . . Garrison Access Hacks 2 | . . . . . 1 . 1 . . Unlock Access 2 | . . . . . 1 . 1 . . Unauthorized Hacks 14 | . 4 . 3 . 2 . 5 . . Terminals 12 | . 3 . 3 . 2 . 4 . . Botnet 11 | . 3 . 3 . 2 . 3 . . Operators 1 | . . . . . . . 1 . . Fabricators . | . . . . . . . . . . Repair Stations . | . . . . . . . . . . Recycling Units 2 | . 1 . . . . . 1 . . Monitor 2 | . 1 . . . . . 1 . . Scanalyzers . | . . . . . . . . . . Garrison Access . | . . . . . . . . . . Data Cores Recovered . | . . . . . . . . . . Used . | . . . . . . . . . . Hacking Detections 27 | . 7 1 5 . 2 3 8 1 . Full Trace Events 10 | . 2 . 3 . 1 1 3 . . Feedback Events 1 | . . . . . . . 1 . . Corruption 1 | . . . . . . . 1 . . Feedback Blocked . | . . . . . . . . . . Robot Schematics Acquired . | . . . . . . . . . . Robots Built . | . . . . . . . . . . Authchips . | . . . . . . . . . . Time . | . . . . . . . . . . Total Robot Build Rating . | . . . . . . . . . . Part Schematics Acquired 6 | . 1 3 2 . . . . . . Parts Built . | . . . . . . . . . . Authchips . | . . . . . . . . . . Time . | . . . . . . . . . . Total Part Build Rating . | . . . . . . . . . . Parts Repaired . | . . . . . . . . . . Time . | . . . . . . . . . . Parts Recycled . | . . . . . . . . . . Recycled Matter . | . . . . . . . . . . Retrieved Matter . | . . . . . . . . . . Retrieved Components . | . . . . . . . . . . Parts Scanalyzed 3 | . . . 2 . . . 1 . . Part Schematics Acquired 2 | . . . 2 . . . . . . Parts Damaged . | . . . . . . . . . . Bothacking | -11 -10 -10 -9 -9 -8 -8 -7 -7 -6 ------------ Run | Jun Mat Min Mat Min Mat Gar Fac Gar Fac Used RIF Installer 3 | . . . . . . 1 . 2 . Threat Obfuscator 1 | . . . . . . . . 1 . Structural Interface 1 | . . . . . . . . 1 . Robots Hacked 24 | . . . . . . . 17 4 3 Non-combat 11 | . . . . . . . 9 . 2 Combat 13 | . . . . . . . 8 4 1 Robot Hacks Applied 34 | . . . . . . . 23 8 3 parse_system 3 | . . . . . . . 2 1 . no_distress 1 | . . . . . . . 1 . . generate_echo 1 | . . . . . . . . . 1 find_chute 1 | . . . . . . . 1 . . hold_bot 1 | . . . . . . . 1 . . start_disposal 1 | . . . . . . . 1 . . map_walls 1 | . . . . . . . . . 1 map_earth 1 | . . . . . . . 1 . . locate_stockpiles 1 | . . . . . . . 1 . . find_recycling 1 | . . . . . . . 1 . . find_station 1 | . . . . . . . 1 . . purge_threat 1 | . . . . . . . 1 . . locate_traps 1 | . . . . . . . 1 . . scatter_targeting 1 | . . . . . . . . 1 . overload_power 2 | . . . . . . . . 2 . amplify_resonance 5 | . . . . . . . 3 1 1 disable_weapons 1 | . . . . . . . . 1 . reboot_system 1 | . . . . . . . 1 . . overwrite_iff 2 | . . . . . . . 2 . . formatsys_low 3 | . . . . . . . 3 . . formatsys_high 4 | . . . . . . . 2 2 . Relay Couplers Released 24 | . . . . . . 21 . 3 . Machine Destruction 24 | . . . . . . 21 . 3 . Attached 9 | . . . . . . 2 4 3 . Fabnet Peak Effective % . | . . . . . . . . . . Robots Rewired 3 | . . . . . . 3 . . . Allies Hacked . | . . . . . . . . . . Hacks Repelled . | . . . . . . . . . . Allies | -11 -10 -10 -9 -9 -8 -8 -7 -7 -6 -------- Run | Jun Mat Min Mat Min Mat Gar Fac Gar Fac Total Allies 18 | . . . . 5 . 4 7 2 . Largest Group 4 | . . . . 3 3 3 4 1 . Highest-Rated Group 120 | . . . . 40 40 120 120 21 . Highest-Rated Ally 40 | . . . . 31 16 40 40 21 . Total Orders 13 | . . . 2 . . . 7 4 . STAY 1 | . . . . . . . 1 . . ROAM 1 | . . . . . . . 1 . . EXPLORE 6 | . . . 1 . . . 3 2 . RETURN 5 | . . . 1 . . . 2 2 . Ally Attacks 83 | . . . . 16 12 17 34 4 . Total Damage 1436 | . . . . 243 142 182 813 56 . Kills 22 | . . . . 5 3 5 9 . . Allies Corrupted . | . . . . . . . . . . Allies Melted . | . . . . . . . . . . Intel | -11 -10 -10 -9 -9 -8 -8 -7 -7 -6 ------- Run | Jun Mat Min Mat Min Mat Gar Fac Gar Fac Robot Analysis Total 3 | . 2 . 1 . . . . . . Derelict Logs Recovered 1 | . . 1 . . . . . . . Drone Launches 6 | . . . 1 . . . 3 2 . Drone Recoveries 6 | . . . 1 . . . 3 2 . Exploration | -11 -10 -10 -9 -9 -8 -8 -7 -7 -6 ------------- Run | Jun Mat Min Mat Min Mat Gar Fac Gar Fac Turns Passed 10290 | 46 1167 1425 690 1170 80 2091 1398 1891 332 Spaces Moved 5676 | 23 649 830 419 763 54 1326 839 677 96 Core . | . . . . . . . . . . Treads 2102 | 14 649 830 . . . . . 513 96 Legs 9 | 9 . . . . . . . . . Wheels 3565 | . . . 419 763 54 1326 839 164 . Hover . | . . . . . . . . . . Flight . | . . . . . . . . . . Fastest Speed 120 | 120 160 160 125 125 125 120 120 125 240 Average Speed 146 | 144 160 160 126 125 125 121 125 214 249 Slowest Speed 320 | 160 160 160 155 155 125 135 230 240 320 Overloaded Moves . | . . . . . . . . . . Propulsion Burnouts . | . . . . . . . . . . Robots Hopped . | . . . . . . . . . . Cave-ins Triggered . | . . . . . . . . . . Exploration Rate (%) 54 | 2 83 99 59 90 9 96 30 72 4 Regions Visited 9 Branch Regions 2 Pre-discovered Areas 1 | . . 1 . . . . . . . Known Exits Taken 7 | 1 1 1 1 1 1 . 1 . . Unknown Exits Taken . | . . . . . . . . . . Scrap Searched 4 | . . 2 . 2 . . . . . Spaces Dug 40 | . 4 5 1 . . 19 2 6 3 Terrain Destroyed 201 | . 4 15 12 17 . 96 3 11 43 Melee 14 | . . . . . . 3 2 6 3 Projectile 11 | . . 5 1 . . . 1 4 . AOE 175 | . 4 10 11 17 . 93 . . 40 Terrain Rammed . | . . . . . . . . . . Walls Destroyed . | . . . . . . . . . . Machines Disabled . | . . . . . . . . . . Actions | -11 -10 -10 -9 -9 -8 -8 -7 -7 -6 --------- Run | Jun Mat Min Mat Min Mat Gar Fac Gar Fac Total 6935 | 32 731 882 522 914 62 1618 1070 964 140 Wait 225 | . 29 5 36 61 . 17 23 54 . Move 5669 | 22 648 829 418 762 54 1325 839 676 96 Hop . | . . . . . . . . . . Pick Up 124 | 4 9 5 19 12 2 18 27 26 2 Fast Attach 12 | . 2 3 . 1 . 4 1 1 . Attach 62 | . 2 . 9 4 2 6 18 19 2 Detach 12 | . . . . 1 . 1 9 1 . Swap 141 | 2 4 5 12 16 . 30 36 25 11 Drop 92 | 2 11 10 . 5 . 23 22 19 . Fire 324 | 2 26 20 26 41 4 46 67 68 24 Melee 173 | . . . . 11 . 93 27 37 5 Ram 2 | . . . 2 . . . . . . Kick . | . . . . . . . . . . Crush 5 | . . 5 . . . . . . . Escape Stasis 77 | . . . . . . 55 . 22 . Rewire 1 | . . . . . . . 1 . . Trap 16 | . . . . . . . . 16 . Miscellaneous . | . . . . . . . . . . Route ------- -11/Junkyard -10/Materials (discovered 3 exits: *Mat x2 / *Min) -10/Mines (discovered 3 exits: *Mat x2 / *Exi) -9/Materials (discovered 3 exits: *Mat / *Min x2) -9/Mines (discovered 2 exits: *Mat x2) -8/Materials -8/Garrison (discovered 4 exits: *Fac x3 / *Mat) -7/Factory (discovered 3 exits: *Low x2 / Gar) -7/Garrison (discovered 3 exits: *Fac x3) -6/Factory History --------- Turn | Location | Event 1 | -11/Junkyard | Identified exit to Materials 1 | -11/Junkyard | Discovered exit to Materials (range 3) 47 | -11/Junkyard | Entered Materials 47 | -10/Materials | Evolved 1 slot: Utility x1 148 | -10/Materials | Identified exit to Mines 328 | -10/Materials | Build established: Hacker-Mutant 361 | -10/Materials | Identified exit to Materials 361 | -10/Materials | Discovered exit to Materials (range 10) 860 | -10/Materials | Discovered exit to Materials (range 13) 1214 | -10/Materials | Entered Mines 1237 | -10/Mines | A weapon hastily lodged in a ceiling crevice suddenly fell to the ground 1698 | -10/Mines | Found the Drone Emporium 1706 | -10/Mines | Found Prototype Device 1706 | -10/Mines | Identified Sensor Drone Bay 1817 | -10/Mines | Received a Rocket Launcher from a helpful Derelict 1842 | -10/Mines | Discovered exit to Materials (range 3) 1983 | -10/Mines | Deemed a non-threat by the Exiles lab entrance 1983 | -10/Mines | Identified exit to Exiles 1983 | -10/Mines | Discovered exit to Exiles (range 5) 2152 | -10/Mines | Discovered exit to Materials (range 5) 2393 | -10/Mines | Learned location of Mines (-9) 2639 | -10/Mines | Entered Materials 2639 | -9/Materials | Evolved 2 slots: Propulsion x1, Utility x1 2705 | -9/Materials | Identified exit to Mines 2705 | -9/Materials | Discovered exit to Mines (range 21) 2890 | -9/Materials | Lost 4 parts (2n1u1w) 3078 | -9/Materials | Identified exit to Materials 3078 | -9/Materials | Discovered exit to Materials (range 10) 3179 | -9/Materials | Build established: Scavenger-Mutant 3329 | -9/Materials | Entered Mines 3383 | -9/Mines | Met a Derelict bent on vengeance 3875 | -9/Mines | Discovered exit to Materials (range 13) 3995 | -9/Mines | Discovered exit to Materials (range 6) 4047 | -9/Mines | Assembled infested the area 4052 | -9/Mines | Assisted by a Guerilla fighting off Assembled 4221 | -9/Mines | Assisted by bots powering up and referring to "LRC-V3" 4499 | -9/Mines | Entered Materials 4499 | -8/Materials | Accompanied by 3 allies 4499 | -8/Materials | Evolved 2 slots: Utility x2 4579 | -8/Materials | Identified exit to Garrison 4579 | -8/Materials | Entered Garrison 4579 | -8/Garrison | Accompanied by 3 allies 4620 | -8/Garrison | Triggered checkpoint 4647 | -8/Garrison | Identified exit to Materials 4647 | -8/Garrison | Discovered exit to Materials (range 10) 4814 | -8/Garrison | Triggered checkpoint 4878 | -8/Garrison | Build established: Scavenger-Assassin 5207 | -8/Garrison | Destroyed 10 combat bots 5224 | -8/Garrison | Identified exit to Factory 5224 | -8/Garrison | Discovered exit to Factory (range 10) 5369 | -8/Garrison | Build established: Scavenger-Mutant 5611 | -8/Garrison | Rescued a captive Derelict 5701 | -8/Garrison | Discovered exit to Factory (range 3) 5721 | -8/Garrison | Installed Relay Interface Framework 5799 | -8/Garrison | Garrison Relay disabled 5864 | -8/Garrison | Triggered checkpoint 6278 | -8/Garrison | Garrison Relay disabled 6326 | -8/Garrison | Discovered exit to Factory (range 12) 6345 | -8/Garrison | Garrison Relay disabled 6574 | -8/Garrison | Garrison Relay disabled 6608 | -8/Garrison | Garrison Relay disabled 6670 | -8/Garrison | Entered Factory 6670 | -7/Factory | Accompanied by 3 allies 6670 | -7/Factory | Evolved 2 slots: Utility x2 6683 | -7/Factory | Identified exit to Lower Caves 6683 | -7/Factory | Discovered exit to Lower Caves (range 24) 6925 | -7/Factory | Build established: Bothacker-Mutant 8024 | -7/Factory | Garrison activated, responded to threat 8067 | -7/Factory | Identified exit to Garrison 8068 | -7/Factory | Entered Garrison 8130 | -7/Garrison | Triggered checkpoint 8169 | -7/Garrison | Garrison Relay disabled 8228 | -7/Garrison | Destroyed 7 combat bots 8233 | -7/Garrison | Lost 5 parts (1p1n1u2w) 8330 | -7/Garrison | Triggered checkpoint 8482 | -7/Garrison | Lost 5 parts (1p2n1u1w) 8484 | -7/Garrison | Triggered checkpoint 8510 | -7/Garrison | Triggered checkpoint 8519 | -7/Garrison | Identified exit to Factory 8519 | -7/Garrison | Discovered exit to Factory (range 56) 8561 | -7/Garrison | Discovered exit to Factory (range 52) 8561 | -7/Garrison | Discovered exit to Factory (range 32) 8561 | -7/Garrison | Discovered exit to Factory (range 54) 8760 | -7/Garrison | Expanded RIF knowledge: Structural Interface 8810 | -7/Garrison | Expanded RIF knowledge: Threat Obfuscation 9650 | -7/Garrison | Spotted B-75 Beast 9959 | -7/Garrison | Entered Factory 9959 | -6/Factory | Evolved 2 slots: Power x1, Utility x1 10291 | -6/Factory | Self-destructed Last Messages --------------- 10269_ R-10 Processor collects Com. Wheel. 10271_ Relay Coupler [NC] destroyed. 10271_ System corrupted by crushing effect (+1). 10271_ Slug penetrates B-48 Gladiator. 10271_ Slug penetrates Wall. 10271_ Slug penetrates B-48 Gladiator. 10273_ R-10 Processor collects Field Recycling Unit. 10275_ B-48 Gladiator suffers critical hit (Burn). 10275_ Critical hit (Burn: +31). 10277_ Acquired 147 matter. 10281_ Jacked G-50 Soldier... >>amplify_resonance Amplifying resonance, compromised power stability. 10282_ G-50 Soldier Lgt. Angular Momentum Engine critical resonance detonation. 10282_ G-50 Soldier Lgt. Angular Momentum Engine critical resonance detonation. 10282_ G-50 Soldier destroyed. 10284_ Critical hit (Burn: +31). 10290_ P-60 Hacker resets R-10 Processor, system corruption cleaned. Map ----- +----------------------------------------------------+ | ????????????????????????????????????????????? | | ?????#?????#????????????????????????????????? | | ?????#?????#?????????????????#??????????????? | | ?????#?????#?????????????????#??????????????? | | ?????#?????#?????????????????#??????????????? | | ?????#?????#?????????????????#??????????????? | | ?????###?###?????????????????#??????????????? | | ########?#?????##########+####??????????????? | | #??????#?#?????#????????????#???????????????? | | #""""??#?#?????#????????????#???????????????? | | ?""""??#?#?????#????????????#???????????????? | | ?""""??#?#?????#????????????#???????????????? | | ?""""??#?#?????#????????????#???????????????? | | ?""""??#?#?????#????????????#???????????????? | | ?""""??#?#######????????????#???????????????? | | #""""??+????? /??????????? #???????????????? | | #??????#?##### #?????????? #???????????????? | | ########+##### #?????????? #???????????????? | | #???? # +????????? #???????????????? | | #????? # #???????? ?#???????????????? | | #??""" """ # #########;#########??????????? | | #??""" """ R #??????????? | | # """ """ % w #??????????? | | #? g #??????????? | | #??""" """ #??????????? | | #??""" """ b@ p #??????????? | | #??""" """ ### ######### #??????????? | | #??? #?# ## #????# ??#########??? | | #?= #?# # ##???# ???????????? | | # =#?# # ##### ????????? | | ##############?#+#+# ## ??????? | | ???????????????# + ????? | | ??????????????## # ????? | | ?????????????## # ##??? | | ?????????????# % # #???? | | ?????????????# ! # #???? | | ?????????????## # #???? | | ?????????????# # #???? | | ?????????????# # ### ## #???? | | ?????????????### ### #???? | | ??????????????# # #???? | | ??????????????# # #???? | | ??????????????# " #???? | | ??????????????# # #???? | | ??????????????# """ """ # #???? | | ??????????????# """ """ " #???? | | ??????????????# """ """ # #???? | | ??????????????# # ########???? | | ??????????????# """ """ # #??????????? | | ??????????????#? """ """ # #??????????? | +----------------------------------------------------+ Best States ------------- Heat Dissipation 48 Energy Generation 27 Energy Capacity 480 Matter Stores 300 Matter Capacity 300 Sight Range 20 Robot Scan Range 15 Terrain Scan Range 16 Terrain Scan Density 85 Armor Coverage 600 Resistance: KI 60 Resistance: TH 60 Resistance: EX 35 Resistance: EM 35 Resistance: I 35 Resistance: S 35 Resistance: P 35 Evasion (%) 55 Targeting Accuracy 6 Core Analysis 6 Armor Integrity Analysis 30 Recoil Reduction 3 Force Boost 20 Salvage Targeting 2 Offensive Hacking 20 Relay Coupler Types 3 Relay Coupler Value 137 Item Schematics ----------------- Cargo Storage Unit | -10/Materials | Hacked Huge Storage Unit | -10/Mines | Hacked Structural Scanner | -10/Mines | Hacked Datajack | -10/Mines | Hacked Visual Processing Unit | -9/Materials | Scanalyzed Rocket Launcher | -9/Materials | Scanalyzed Robot Schematics ------------------ None Fabricated ------------ Nothing Alien Tech Used ----------------- None Achievements -------------- None Challenges ------------ None Game ------ Seed LatentReactiveAutocannon Manual? 0 Play Time 03:17:21 Cumulative 153.7 hours Start 2023.09.25 @ 20:53:37 End 2023.09.26 @ 12:15:58 Sessions 3 Manual Loads 0 Difficulty Explorer Special Mode None Game No. 28 Rogue 18 Adventurer 8 Explorer 2 Win Type - Total 3 Types 3/0/0/0/0/0/0/0/0 Lore% 45 Gallery% 71 Achievement% 57 Wizard Run 0 Options --------- ASCII 0 Keyboard 0 Movement Mouse Keybinds 0 Fullscreen 2 Font 18/SmallcapsGlow Map View 76x50 Tactical HUD 1 Map Filters NONE Filters NONE Steam 1 RUN: ac09db7d-3f67-47dc-820a-f83b3952ddc2